bitfinex/quotes_ETHUSD_20230903
["timestamp","ask_amount","ask_price","bid_price","bid_amount"]
[1693741052388,0.24722053,1634.2,1634.1,3.3870682]
[1693741052572,1.84171157,1634.2,1634.1,3.3870682]
[1693741052893,2.9047056,1634.2,1634.1,3.3870682]
[1693741053360,0.24722053,1634.2,1634.1,3.3870682]
[1693741053787,2.9047056,1634.2,1634.1,3.3870682]
[1693741054188,0.24722053,1634.2,1634.1,3.3870682]
[1693741054529,1.84171157,1634.2,1634.1,3.3870682]
[1693741054668,0.24722053,1634.2,1634.1,3.3870682]
[1693741055413,1.84171157,1634.2,1634.1,3.3870682]
[1693741055612,0.24722053,1634.2,1634.1,3.3870682]
[1693741055810,1.84171157,1634.2,1634.1,3.3870682]
[1693741055974,0.24722053,1634.2,1634.1,3.3870682]
[1693741056171,1.84171157,1634.2,1634.1,3.3870682]
[1693741056399,0.24722053,1634.2,1634.1,3.3870682]
[1693741056606,1.84171157,1634.2,1634.1,3.3870682]
[1693741056807,0.24722053,1634.2,1634.1,3.3870682]
[1693741057471,1.84171157,1634.2,1634.1,3.3870682]
[1693741057672,0.24722053,1634.2,1634.1,3.3870682]
[1693741057909,1.84171157,1634.2,1634.1,3.3870682]
[1693741058113,2.9047056,1634.2,1634.1,3.3870682]
[1693741058315,0.24722053,1634.2,1634.1,3.3870682]
[1693741058515,1.84171157,1634.2,1634.1,3.3870682]
[1693741058770,0.24722053,1634.2,1634.1,3.3870682]
[1693741059219,2.9047056,1634.2,1634.1,3.3870682]
[1693741059526,0.24722053,1634.2,1634.1,3.3870682]
[1693741059878,1.84171157,1634.2,1634.1,3.3870682]
[1693741060077,1.31021456,1634.2,1634.1,3.3870682]
[1693741060279,1.84171157,1634.2,1634.1,3.3870682]
[1693741060527,0.24722053,1634.2,1634.1,3.3870682]
[1693741060708,1.84171157,1634.2,1634.1,3.3870682]
[1693741060878,0.24722053,1634.2,1634.1,3.3870682]
[1693741061079,1.84171157,1634.2,1634.1,3.3870682]
[1693741061317,2.9047056,1634.2,1634.1,3.3870682]
[1693741061783,0.24722053,1634.2,1634.1,3.3870682]
[1693741061977,1.84171157,1634.2,1634.1,3.3870682]
[1693741062188,2.9047056,1634.2,1634.1,3.3870682]
[1693741062420,0.24722053,1634.2,1634.1,3.3870682]
[1693741062589,1.84171157,1634.2,1634.1,3.3870682]
[1693741062790,0.24722053,1634.2,1634.1,3.3870682]
[1693741063284,2.9047056,1634.2,1634.1,3.3870682]
[1693741063485,0.24722053,1634.2,1634.1,3.3870682]
[1693741063686,1.84171157,1634.2,1634.1,3.3870682]
[1693741063929,0.24722053,1634.2,1634.1,3.3870682]
[1693741064135,1.84171157,1634.2,1634.1,3.3870682]
[1693741064444,0.24722053,1634.2,1634.1,3.3870682]
[1693741064585,1.84171157,1634.2,1634.1,3.3870682]
[1693741064783,0.24722053,1634.2,1634.1,3.3870682]
[1693741064993,1.84171157,1634.2,1634.1,3.3870682]
[1693741065219,2.9047056,1634.2,1634.1,3.3870682]
[1693741065734,0.24722053,1634.2,1634.1,3.3870682]
[1693741065891,1.84171157,1634.2,1634.1,3.3870682]
[1693741066232,2.9047056,1634.2,1634.1,3.3870682]
[1693741066535,0.24722053,1634.2,1634.1,3.3870682]
[1693741066731,1.84171157,1634.2,1634.1,3.3870682]
[1693741066885,2.9047056,1634.2,1634.1,3.3870682]
[1693741067092,0.24722053,1634.2,1634.1,3.3870682]
[1693741067287,1.84171157,1634.2,1634.1,3.3870682]
[1693741067488,1.31021456,1634.2,1634.1,3.3870682]
[1693741067711,2.9047056,1634.2,1634.1,3.3870682]
[1693741067925,0.24722053,1634.2,1634.1,3.3870682]
[1693741068415,2.9047056,1634.2,1634.1,3.3870682]
[1693741069127,0.24722053,1634.2,1634.1,3.3870682]
[1693741069701,2.9047056,1634.2,1634.1,3.3870682]
[1693741070233,1.84171157,1634.2,1634.1,3.3870682]
[1693741126310,1.84171157,1634.2,1634.1,0.7808682]
[1693741158367,1.84171157,1634.2,1634.0,7.77878197]
[1693741158662,0.24722053,1634.2,1634.0,7.77878197]
[1693741174892,1.31022478,1634.2,1634.0,7.77878197]
[1693741175193,0.24722053,1634.2,1634.0,7.77878197]
[1693741178390,0.24722053,1634.2,1634.0,10.86063601]
[1693741178593,0.24722053,1634.2,1634.1,1.0860636]
[1693741179475,1.84169858,1634.2,1634.1,1.0860636]
[1693741188775,1.31020761,1634.2,1634.1,1.0860636]
[1693741188985,0.24722053,1634.2,1634.1,1.0860636]
[1693741200300,1.31020761,1634.2,1634.1,1.0860636]
[1693741200608,0.24722053,1634.2,1634.1,1.0860636]
[1693741200907,1.31020761,1634.2,1634.1,1.0860636]
[1693741201110,0.24722053,1634.2,1634.1,1.0860636]
[1693741201947,1.06298708,1634.2,1634.1,1.0860636]
[1693741202099,2.27316112,1634.3,1634.1,1.0860636]
[1693741202305,1.06297258,1634.2,1634.1,3.8071636]
[1693741202541,3.86760643,1634.3,1634.1,3.8071636]
[1693741202749,1.06297258,1634.2,1634.1,3.8071636]
[1693741203105,3.86760661,1634.3,1634.1,3.8071636]
[1693741207636,3.86760661,1634.3,1634.1,1.0860636]
[1693741207838,3.86760661,1634.3,1634.1,3.7864636]
[1693741218230,0.24722053,1634.3,1634.1,3.7864636]
[1693741218436,1.21017404,1634.3,1634.2,0.37864636]
[1693741218647,2.90463221,1634.3,1634.2,0.37864636]
[1693741219053,3.31794354,1634.3,1634.2,0.37864636]
[1693741222256,0.41331133,1634.3,1634.2,3.4605004]
[1693741222463,0.24722053,1634.4,1634.2,6.4605004]
[1693741222662,0.24722053,1634.4,1634.3,6.72790408]
[1693741222967,0.24722053,1634.5,1634.3,6.72790408]
[1693741223463,1.21017404,1634.6,1634.3,9.28400408]
[1693741223680,0.24722053,1634.6,1634.3,9.28400408]
[1693741223885,0.24722053,1634.6,1634.4,0.92840041]
[1693741224254,0.38353999,1634.5,1634.4,0.92840041]
[1693741224455,0.38353999,1634.5,1634.4,2.63050041]
[1693741224654,1.21017404,1634.7,1634.4,3.92840041]
[1693741224884,1.21017404,1634.7,1634.4,0.92840041]
[1693741224885,3.86706037,1634.7,1634.4,0.92840041]
[1693741225189,0.38350623,1634.5,1634.4,2.63050041]
[1693741225354,0.24722053,1634.7,1634.4,5.63050041]
[1693741225554,0.24722053,1634.7,1634.5,0.56305004]
[1693741225881,2.90410915,1634.7,1634.4,2.66290041]
[1693741226782,0.24722053,1634.7,1634.4,5.74475445]
[1693741226964,1.30996387,1634.7,1634.4,5.74475445]
[1693741227161,1.87212053,1634.8,1634.4,5.74475445]
[1693741227484,1.87212053,1634.8,1634.5,3.08185404]
[1693741227692,1.6249,1634.8,1634.6,0.3081854]
[1693741227861,1.21017404,1634.9,1634.6,3.39003944]
[1693741228186,4.56739659,1634.9,1634.6,3.39003944]
[1693741228486,1.91072053,1634.9,1634.6,3.39003944]
[1693741228690,1.91072053,1634.9,1634.6,5.12453944]
[1693741228876,1.91072053,1634.9,1634.7,0.51245394]
[1693741229056,1.91072053,1634.9,1634.6,5.12453944]
[1693741229057,0.24722053,1634.9,1634.6,5.12453944]
[1693741229257,0.38366693,1634.8,1634.6,5.12453944]
[1693741235293,0.38366693,1634.8,1634.7,3.08185404]
[1693741238170,0.38366693,1634.8,1634.7,5.58185404]
[1693741240395,1.81162053,1635.0,1634.7,5.58185404]
[1693741240602,1.81162053,1635.0,1634.8,0.5581854]
[1693741240901,0.24722053,1635.0,1634.8,0.5581854]
[1693741241271,2.90374846,1635.0,1634.8,0.5581854]
[1693741241699,3.86670197,1635.0,1634.8,0.5581854]
[1693741244208,0.38372049,1634.9,1634.8,0.5581854]
[1693741247690,1.44633496,1634.9,1634.8,0.5581854]
[1693741247893,0.38372049,1634.9,1634.8,0.5581854]
[1693741248232,0.63094102,1634.9,1634.8,0.5581854]
[1693741248530,0.38372049,1634.9,1634.8,0.5581854]
[1693741248707,1.44633294,1634.9,1634.8,0.5581854]
[1693741249124,0.63094102,1634.9,1634.8,0.5581854]
[1693741249429,1.69355347,1634.9,1634.8,0.5581854]
[1693741249794,0.63094102,1634.9,1634.8,0.5581854]
[1693741253004,1.44633294,1634.9,1634.8,0.5581854]
[1693741253205,1.69355347,1634.9,1634.8,0.5581854]
[1693741253733,0.63094102,1634.9,1634.8,0.5581854]
[1693741253935,1.69355347,1634.9,1634.8,0.5581854]
[1693741254648,0.63094102,1634.9,1634.8,0.5581854]
[1693741254818,1.69355347,1634.9,1634.8,0.5581854]
[1693741255828,0.63094102,1634.9,1634.8,0.5581854]
[1693741260401,0.63094102,1634.9,1634.7,10.00835404]
[1693741260940,1.69355347,1634.9,1634.7,10.00835404]
[1693741261165,3.28743717,1634.9,1634.7,10.00835404]
[1693741261329,0.63094102,1634.9,1634.7,10.00835404]
[1693741262255,3.28741469,1634.9,1634.7,10.00835404]
[1693741262457,3.28741469,1634.9,1634.7,11.08986265]
[1693741265029,3.28741469,1634.9,1634.7,8.58986265]
[1693741265231,4.2503682,1634.9,1634.7,8.58986265]
[1693741266264,1.30981,1634.8,1634.7,8.58986265]
[1693741266558,1.69347693,1634.8,1634.7,8.58986265]
[1693741266729,0.63088746,1634.8,1634.7,6.82346265]
[1693741269070,0.63088746,1634.8,1634.7,9.32346265]
[1693741269268,1.59384097,1634.8,1634.7,9.32346265]
[1693741269435,4.25031275,1634.8,1634.7,9.32346265]
[1693741269639,1.59384097,1634.8,1634.7,9.32346265]
[1693741269967,4.25031275,1634.8,1634.7,9.32346265]
[1693741270465,1.59384097,1634.8,1634.7,9.32346265]
[1693741273171,4.25031275,1634.8,1634.7,9.32346265]
[1693741273540,1.59384097,1634.8,1634.7,9.32346265]
[1693741273752,0.63088746,1634.8,1634.7,9.32346265]
[1693741279180,0.38366693,1634.8,1634.7,9.32346265]
[1693741280469,1.69347835,1634.8,1634.7,9.32346265]
[1693741280669,0.38366693,1634.8,1634.7,9.32346265]
[1693741281177,0.63088746,1634.8,1634.7,9.32346265]
[1693741281372,1.69347768,1634.8,1634.7,9.32346265]
[1693741281989,1.44625715,1634.8,1634.7,9.32346265]
[1693741282194,1.69347768,1634.8,1634.7,9.32346265]
[1693741282569,0.63088746,1634.8,1634.7,9.32346265]
[1693741282886,1.69347768,1634.8,1634.7,9.32346265]
[1693741283281,0.63088746,1634.8,1634.7,9.32346265]
[1693741283669,1.69347768,1634.8,1634.7,9.32346265]
[1693741284392,0.63088746,1634.8,1634.7,9.32346265]
[1693741284558,1.69347768,1634.8,1634.7,9.32346265]
[1693741284902,0.63088746,1634.8,1634.7,9.32346265]
[1693741285105,1.69347768,1634.8,1634.7,9.32346265]
[1693741285574,0.63088746,1634.8,1634.7,9.32346265]
[1693741285778,1.69347768,1634.8,1634.7,9.32346265]
[1693741285962,0.63088746,1634.8,1634.7,9.32346265]
[1693741286183,2.08861422,1634.8,1634.7,9.32346265]
[1693741303411,0.38366693,1634.8,1634.7,9.32346265]
[1693741303713,0.64247987,1634.8,1634.7,9.32346265]
[1693741303914,1.70506462,1634.8,1634.7,9.32346265]
[1693741304111,2.06689254,1634.8,1634.7,9.32346265]
[1693741321449,2.06689254,1634.8,1634.7,8.24195404]
[1693741333673,2.06689254,1634.8,1634.7,5.58185404]
[1693741334042,1.42441267,1634.8,1634.7,5.58185404]
[1693741334346,1.42440403,1634.8,1634.7,5.58185404]
[1693741335943,2.0668839,1634.8,1634.7,5.58185404]
[1693741336143,2.0668839,1634.8,1634.7,6.39894265]
[1693741337176,0.36182792,1634.8,1634.7,6.39894265]
[1693741353279,0.36182792,1634.8,1634.7,2.5]
[1693741353487,3.66089437,1634.8,1634.7,2.5]
[1693741356086,2.06694242,1634.8,1634.7,2.5]
[1693741358386,0.36182792,1634.8,1634.7,2.5]
[1693741372253,0.36182792,1634.8,1634.7,5.58185404]
[1693741372415,0.36182792,1634.8,1634.7,6.18918338]
[1693741430546,1.546,1635.0,1634.7,6.18918338]
[1693741430547,0.6421302,1634.9,1634.7,6.18918338]
[1693741430739,1.70467406,1634.9,1634.7,8.70688338]
[1693741431043,0.34937646,1634.8,1634.7,8.70688338]
[1693741439325,0.34937646,1634.8,1634.7,2.5]
[1693741439528,1.41196221,1634.8,1634.7,2.5]
[1693741439755,0.34937646,1634.8,1634.7,2.5]
[1693741465584,0.34937646,1634.8,1634.6,3.06494003]
[1693741471097,0.34937646,1634.8,1634.6,1.42544003]
[1693741471262,0.34937646,1634.8,1634.5,6.52279091]
[1693741471460,0.34937646,1634.8,1634.6,0.65227909]
[1693741484919,0.34937646,1634.8,1634.6,1.14664652]
[1693741486521,0.34937646,1634.8,1634.6,2.07477868]
[1693741534800,0.34937646,1634.8,1634.6,0.49436743]
[1693741535112,0.34937646,1634.8,1634.5,13.72424397]
[1693741576612,0.34937646,1634.8,1634.5,15.00889721]
[1693741584644,0.34937646,1634.8,1634.5,13.72424397]
[1693741590139,0.34937646,1634.8,1634.5,11.72424397]
[1693741591435,0.33446731,1634.8,1634.5,11.72424397]
[1693741591643,0.33446731,1634.8,1634.5,13.53532156]
[1693741592456,0.33446731,1634.8,1634.5,16.53532156]
[1693741592659,0.33446731,1634.8,1634.5,13.53532156]
[1693741592870,0.33446731,1634.8,1634.5,16.53532156]
[1693741593037,0.33446731,1634.8,1634.5,13.53532156]
[1693741593242,0.33446731,1634.8,1634.5,16.53532156]
[1693741593960,0.33446731,1634.8,1634.5,13.53532156]
[1693741594256,0.33446731,1634.8,1634.5,16.53532156]
[1693741595456,0.33446731,1634.8,1634.5,13.53532156]
[1693741595642,0.33446731,1634.8,1634.5,16.53532156]
[1693741595850,0.33446731,1634.8,1634.5,13.53532156]
[1693741596553,0.33446731,1634.8,1634.5,16.53532156]
[1693741596728,0.33446731,1634.8,1634.5,13.53532156]
[1693741597463,0.33446731,1634.8,1634.5,16.53532156]
[1693741597761,0.33446731,1634.8,1634.5,13.53532156]
[1693741598139,0.33446731,1634.8,1634.5,16.53532156]
[1693741598329,0.33446731,1634.8,1634.5,13.53532156]
[1693741598961,0.33446731,1634.8,1634.5,16.53532156]
[1693741599150,0.33446731,1634.8,1634.5,13.53532156]
[1693741599323,0.33446731,1634.8,1634.5,16.53532156]
[1693741599962,0.33446731,1634.8,1634.5,13.53532156]
[1693741600159,0.33446731,1634.8,1634.5,16.53532156]
[1693741600365,0.33446731,1634.8,1634.5,13.53532156]
[1693741600963,0.33446731,1634.8,1634.5,16.53532156]
[1693741601165,0.33446731,1634.8,1634.5,13.53532156]
[1693741601368,0.33446731,1634.8,1634.5,16.53532156]
[1693741601963,0.33446731,1634.8,1634.5,13.53532156]
[1693741602164,0.33446731,1634.8,1634.5,15.53532156]
[1693741602370,0.33446731,1634.8,1634.6,3.0]
[1693741617792,0.33446731,1634.8,1634.6,3.48327469]
[1693741621616,0.33446731,1634.8,1634.6,4.44676462]
[1693741623515,0.33446731,1634.8,1634.6,3.48327469]
[1693741623714,0.33446731,1634.8,1634.6,4.44676462]
[1693741624116,0.33446731,1634.8,1634.6,3.48327469]
[1693741633537,0.33446731,1634.8,1634.6,4.44676462]
[1693741633744,0.33446731,1634.8,1634.6,3.48327469]
[1693741634533,0.33446731,1634.8,1634.6,4.44676462]
[1693741635646,0.33446731,1634.8,1634.6,3.48327469]
[1693741641220,0.33446731,1634.8,1634.6,5.21359964]
[1693741647314,0.33446731,1634.8,1634.6,6.17708957]
[1693741647921,0.33446731,1634.8,1634.6,5.21359964]
[1693741648107,0.33446731,1634.8,1634.6,6.17708957]
[1693741648345,0.33446731,1634.8,1634.6,5.21359964]
[1693741648641,0.33446731,1634.8,1634.6,6.17708957]
[1693741649240,0.33446731,1634.8,1634.6,5.21359964]
[1693741649639,0.33446731,1634.8,1634.6,6.17708957]
[1693741649943,0.33446731,1634.8,1634.7,0.61770896]
[1693741650143,0.33446731,1634.8,1634.6,9.25894361]
[1693741652060,1.60525487,1635.0,1634.6,9.25894361]
[1693741652242,1.60525487,1635.0,1634.7,2.6492]
[1693741652474,4.26147985,1635.0,1634.7,2.6492]
[1693741652760,0.64210195,1635.0,1634.7,2.6492]
[1693741653241,3.29832753,1635.0,1634.7,2.6492]
[1693741660471,3.29832753,1635.0,1634.7,7.0920984]
[1693741660637,0.64210195,1635.0,1634.8,6.08185404]
[1693741660843,0.96315292,1635.1,1634.8,6.08185404]
[1693741660844,0.64210195,1635.1,1634.8,6.08185404]
[1693741661066,3.29815177,1635.1,1634.8,6.08185404]
[1693741661255,3.29815177,1635.1,1634.8,9.10867287]
[1693741662666,1.70452188,1635.1,1634.8,9.10867287]
[1693741662836,0.64210195,1635.1,1634.8,9.10867287]
[1693741663032,3.29814628,1635.1,1634.8,9.10867287]
[1693741663233,1.70451968,1635.1,1634.8,9.10867287]
[1693741663453,0.64210195,1635.1,1634.8,9.10867287]
[1693741663656,1.70451984,1635.1,1634.8,9.10867287]
[1693741664290,0.32269266,1635.0,1634.8,9.10867287]
[1693741664586,0.32269266,1635.0,1634.9,0.91086729]
[1693741665290,0.32269266,1635.0,1634.8,7.82845404]
[1693741667058,3.23175487,1635.2,1634.8,7.82845404]
[1693741667262,3.23175487,1635.2,1634.9,2.6624]
[1693741671375,2.26860195,1635.2,1634.9,2.6624]
[1693741673013,2.26860195,1635.2,1634.9,5.1624]
[1693741674899,2.26860195,1635.2,1634.9,6.9126]
[1693741675103,2.26860195,1635.2,1634.9,8.26097016]
[1693741679213,0.32271246,1635.1,1634.9,8.26097016]
[1693741679652,2.26860195,1635.2,1634.9,8.26097016]
[1693741684350,0.64210195,1635.2,1634.9,8.26097016]
[1693741686167,1.7044935,1635.2,1634.9,8.26097016]
[1693741694296,0.32271246,1635.1,1634.9,8.26097016]
[1693741694501,0.32271246,1635.1,1635.0,0.82609702]
[1693741694677,0.64210195,1635.2,1634.9,8.26097016]
[1693741695086,3.29807999,1635.2,1634.9,8.26097016]
[1693741695288,0.64210195,1635.2,1634.9,8.26097016]
[1693741695501,3.29806329,1635.2,1634.9,8.26097016]
[1693741695706,0.64210195,1635.2,1634.9,8.26097016]
[1693741696166,3.29806584,1635.2,1634.9,8.26097016]
[1693741696361,0.64210195,1635.2,1634.9,8.26097016]
[1693741696561,1.7044882,1635.2,1634.9,8.26097016]
[1693741703010,0.64182845,1635.2,1634.9,8.26097016]
[1693741703298,3.29780256,1635.2,1634.9,8.26097016]
[1693741703492,0.64182845,1635.2,1634.9,8.26097016]
[1693741703892,3.29780288,1635.2,1634.9,8.26097016]
[1693741704596,4.26054555,1635.2,1634.9,8.26097016]
[1693741706612,1.70421819,1635.1,1634.9,8.26097016]
[1693741706810,0.64182845,1635.1,1634.9,8.26097016]
[1693741709309,0.32274382,1635.0,1634.9,8.26097016]
[1693741709798,0.32274382,1635.0,1634.9,6.51077016]
[1693741724134,0.32274382,1635.0,1634.9,12.67792426]
[1693741724298,0.32274382,1635.0,1634.9,12.67791972]
[1693741725349,0.32274382,1635.0,1634.9,6.51077016]
[1693741725515,0.32274382,1635.0,1634.9,12.67792194]
[1693741728123,0.32274382,1635.0,1634.9,12.67791667]
[1693741731234,0.32274382,1635.0,1634.9,6.51077016]
[1693741731441,0.32274382,1635.0,1634.9,12.67792149]
[1693741735947,0.64182845,1635.1,1634.9,12.67792149]
[1693741736241,1.70420935,1635.1,1634.9,5.1624]
[1693741736450,0.32260888,1635.0,1634.9,5.1624]
[1693741736614,0.32260888,1635.0,1634.9,11.32951579]
[1693741737136,0.64182845,1635.1,1634.9,11.32951579]
[1693741737338,1.7042106,1635.1,1634.9,5.1624]
[1693741737736,0.32264262,1635.0,1634.9,5.1624]
[1693741737937,0.32264262,1635.0,1634.9,12.77413424]
[1693741738336,0.64182845,1635.1,1634.9,12.77413424]
[1693741738564,1.70421039,1635.1,1634.9,5.1624]
[1693741738750,0.32260888,1635.0,1634.9,5.1624]
[1693741738917,0.32260888,1635.0,1634.9,11.32951712]
[1693741739449,0.64182845,1635.1,1634.9,11.32951712]
[1693741739648,1.70421091,1635.1,1634.9,5.1624]
[1693741739844,0.32260888,1635.0,1634.9,5.1624]
[1693741740015,0.32260888,1635.0,1634.9,11.32952304]
[1693741740445,0.64182845,1635.1,1634.9,11.32952304]
[1693741740645,1.70421093,1635.1,1634.9,5.1624]
[1693741740848,0.32260888,1635.0,1634.9,5.1624]
[1693741741148,0.32260888,1635.0,1634.9,12.54142462]
[1693741741850,0.64182845,1635.1,1634.9,12.54142462]
[1693741742050,1.70421137,1635.1,1634.9,5.1624]
[1693741742247,0.32260888,1635.0,1634.9,5.1624]
[1693741742451,0.32260888,1635.0,1634.9,11.32951205]
[1693741742856,0.32260888,1635.0,1634.9,11.32951477]
[1693741743026,0.64182845,1635.1,1634.9,11.32951477]
[1693741743217,3.23077112,1635.2,1634.9,5.1624]
[1693741743418,0.32260888,1635.0,1634.9,5.1624]
[1693741743620,3.23077112,1635.2,1634.9,12.77411162]
[1693741743821,3.23077112,1635.2,1634.9,5.1624]
[1693741752095,3.23077112,1635.2,1634.9,2.6624]
[1693741754202,0.32269615,1635.1,1634.9,2.6624]
[1693741754497,3.23175305,1635.2,1634.9,2.6624]
[1693741756464,3.23175305,1635.2,1634.9,5.1624]
[1693741763208,3.23175305,1635.2,1634.9,6.60707277]
[1693741764706,3.23175305,1635.2,1634.9,8.28497277]
[1693741765007,2.26842122,1635.2,1634.9,8.28497277]
[1693741769207,0.32269615,1635.1,1634.9,8.28497277]
[1693741769603,2.26842122,1635.2,1634.9,8.28497277]
[1693741771308,0.64222122,1635.2,1634.9,8.28497277]
[1693741771689,3.29812762,1635.2,1634.9,8.28497277]
[1693741771891,0.64222122,1635.2,1634.9,11.36682681]
[1693741772091,0.64222122,1635.2,1635.0,1.13668268]
[1693741772293,3.29811365,1635.2,1634.9,11.36682681]
[1693741772500,0.64222122,1635.2,1634.9,11.36682681]
[1693741772995,3.29809979,1635.2,1634.9,11.36682681]
[1693741773200,0.64222122,1635.2,1634.9,11.36682681]
[1693741773395,3.29809749,1635.2,1634.9,11.36682681]
[1693741773601,0.64222122,1635.2,1634.9,11.36682681]
[1693741774009,3.29809755,1635.2,1634.9,11.36682681]
[1693741774286,0.64222122,1635.2,1634.9,11.36682681]
[1693741774502,1.70457187,1635.2,1635.0,1.13668268]
[1693741774677,3.29809782,1635.2,1634.9,11.36682681]
[1693741774882,0.64222122,1635.2,1634.9,11.36682681]
[1693741775283,3.29810196,1635.2,1634.9,11.36682681]
[1693741776024,3.29810196,1635.2,1634.9,9.68892681]
[1693741784407,0.32270364,1635.1,1634.9,9.68892681]
[1693741784609,0.64222122,1635.2,1635.0,0.96889268]
[1693741784809,0.64222122,1635.2,1634.9,9.68892681]
[1693741785128,3.29807722,1635.2,1634.9,9.68892681]
[1693741785453,0.64222122,1635.2,1634.9,9.68892681]
[1693741785800,3.29807784,1635.2,1634.9,9.68892681]
[1693741786329,0.64222122,1635.2,1634.9,9.68892681]
[1693741786509,1.70456393,1635.2,1634.9,9.68892681]
[1693741786708,3.29807774,1635.2,1634.9,9.68892681]
[1693741787489,0.64222122,1635.2,1634.9,9.68892681]
[1693741787617,1.70456399,1635.2,1634.9,9.68892681]
[1693741789553,1.70456399,1635.2,1634.9,8.24425404]
[1693741799381,0.32270364,1635.1,1634.9,8.24425404]
[1693741799786,2.29522122,1635.2,1634.9,8.24425404]
[1693741807885,2.29522122,1635.2,1634.9,9.91835404]
[1693741814389,0.32270364,1635.1,1634.9,9.91835404]
[1693741814722,2.29522122,1635.2,1635.0,0.9918354]
[1693741814891,2.29522122,1635.2,1634.9,9.91835404]
[1693741817213,0.64222122,1635.2,1634.9,9.91835404]
[1693741817615,3.29808334,1635.2,1634.9,9.91835404]
[1693741829443,0.32263617,1635.1,1634.9,9.91835404]
[1693741829836,0.64222122,1635.2,1634.9,9.91835404]
[1693741830145,0.64222122,1635.2,1634.9,11.35545681]
[1693741830344,3.29808093,1635.2,1634.9,11.35545681]
[1693741831442,3.08185404,1635.1,1634.4,5.30699771]
[1693741831647,0.64222122,1634.7,1634.3,3.14942558]
[1693741831869,0.64222122,1634.7,1634.1,0.96380458]
[1693741831870,0.96333183,1634.6,1634.1,0.96380458]
[1693741832020,0.64222122,1634.6,1633.9,5.7476]
[1693741832214,0.64222122,1634.3,1633.9,5.7476]
[1693741832616,0.64572641,1634.5,1633.9,5.7476]
[1693741832822,1.70858939,1634.5,1634.0,0.57476]
[1693741833125,1.60905824,1634.5,1634.0,0.57476]
[1693741833633,0.64572641,1634.5,1634.0,0.57476]
[1693741834049,0.64572641,1634.5,1634.0,3.57476]
[1693741834221,1.70859062,1634.5,1634.0,3.57476]
[1693741834653,1.70859062,1634.5,1634.1,3.08185404]
[1693741835422,2.67192245,1634.5,1634.1,3.08185404]
[1693741835622,1.60905824,1634.5,1634.1,3.08185404]
[1693741836526,1.70509007,1634.4,1634.1,3.08185404]
[1693741836754,1.70509007,1634.4,1634.1,3.74751544]
[1693741837236,0.00336244,1634.3,1634.1,3.74751544]
[1693741839135,0.00336244,1634.3,1634.0,3.57476]
[1693741839339,0.00336244,1634.3,1634.0,6.65661404]
[1693741840381,0.00336244,1634.3,1634.0,6.08185404]
[1693741840561,0.64558366,1634.3,1634.0,6.08185404]
[1693741840767,0.00336244,1634.3,1634.0,6.08185404]
[1693741841068,1.70845875,1634.3,1634.0,6.08185404]
[1693741841273,0.64558366,1634.3,1634.0,6.08185404]
[1693741843753,0.64558366,1634.3,1634.0,3.0]
[1693741844159,0.35779088,1634.2,1634.0,3.0]
[1693741845261,0.00333713,1634.1,1634.0,3.0]
[1693741845578,0.00333713,1634.1,1634.0,3.73680445]
[1693741847446,0.00333713,1634.1,1634.0,3.09907855]
[1693741859196,0.3610744,1634.1,1634.0,3.09907855]
[1693741865531,2.06617023,1634.1,1634.0,3.09907855]
[1693741868593,3.66048206,1634.1,1634.0,3.09907855]
[1693741872436,4.62381389,1634.1,1634.0,3.09907855]
[1693741873533,3.98159267,1634.1,1634.0,3.09907855]
[1693741875527,5.26616759,1634.1,1634.0,3.09907855]
[1693741876426,6.42858551,1634.1,1634.0,3.09907855]
[1693741877434,5.14401059,1634.1,1634.0,3.09907855]
[1693741879412,6.74941343,1634.1,1634.0,3.09907855]
[1693741882346,8.03375538,1634.1,1634.0,3.09907855]
[1693741882524,6.42835254,1634.1,1634.0,3.09907855]
[1693741884548,3.98152575,1634.1,1634.0,3.09907855]
[1693741886558,3.66043704,1634.1,1634.0,3.09907855]
[1693741886928,0.3610744,1634.1,1634.0,3.09907855]
[1693741887128,0.99991309,1634.1,1634.0,3.09907855]
[1693741887326,3.29936159,1634.1,1634.0,3.09907855]
[1693741887552,1.70505013,1634.1,1634.0,3.09907855]
[1693741887758,2.0627874,1634.1,1634.0,3.09907855]
[1693741888124,2.06612453,1634.1,1634.0,3.09907855]
[1693741888446,0.3610744,1634.1,1634.0,3.09907855]
[1693741925827,0.3610744,1634.1,1634.0,2.3622741]
[1693741951564,0.3610744,1634.1,1634.0,8.53227427]
[1693741970601,0.3610744,1634.1,1634.0,2.3622741]
[1693741970809,0.3610744,1634.1,1634.0,8.5322951]
[1693741975613,0.3610744,1634.1,1634.0,8.53229177]
[1693741977713,0.3610744,1634.1,1634.0,10.01344302]
[1693741980082,0.3610744,1634.1,1634.0,8.53229177]
[1693741997844,0.3610744,1634.1,1634.0,8.52470356]
[1693742002643,0.3610744,1634.1,1634.0,6.16242946]
[1693742003518,0.3610744,1634.1,1633.9,1.76702069]
[1693742007821,0.3610744,1634.1,1633.9,0.83026674]
[1693742008026,0.3610744,1634.1,1633.9,0.33066464]
[1693742011560,1.00325895,1634.1,1633.9,0.33066464]
[1693742011761,2.06631104,1634.1,1633.9,0.33066464]
[1693742011976,1.00325895,1634.1,1633.9,0.33066464]
[1693742014188,0.3610744,1634.1,1633.9,0.33066464]
[1693742026358,0.3610744,1634.1,1633.9,3.12876464]
[1693742045107,1.00325895,1634.1,1633.9,3.12876464]
[1693742045307,2.06631743,1634.1,1633.9,3.12876464]
[1693742045473,1.00325895,1634.1,1633.9,3.12876464]
[1693742050116,0.3610744,1634.1,1633.9,3.12876464]
[1693742050320,1.00276043,1634.1,1633.9,3.12876464]
[1693742050687,0.64502316,1634.1,1633.9,3.12876464]
[1693742050914,0.34626976,1634.0,1633.9,3.12876464]
[1693742051305,0.3493325,1634.0,1633.9,3.12876464]
[1693742054419,0.3493325,1634.0,1633.9,9.2562089]
[1693742064561,1.41239681,1634.0,1633.9,9.2562089]
[1693742065043,0.3493325,1634.0,1633.9,9.2562089]
[1693742067957,0.3493325,1634.0,1633.9,9.25221313]
[1693742089302,0.3493325,1634.0,1633.9,3.12876464]
[1693742089470,0.3493325,1634.0,1633.9,9.26607179]
[1693742092910,0.3493325,1634.0,1633.9,9.26443039]
[1693742100412,1.4123955,1634.0,1633.9,9.26443039]
[1693742102532,2.05408153,1634.0,1633.9,9.26443039]
[1693742103318,1.4123955,1634.0,1633.9,9.26443039]
[1693742110398,1.4123955,1634.0,1633.9,9.26728596]
[1693742111331,0.3493325,1634.0,1633.9,12.34914]
[1693742111896,0.00306274,1634.0,1633.9,12.34914]
[1693742112309,0.34019145,1634.0,1633.9,12.34914]
[1693742113859,0.34019145,1634.0,1633.9,12.35277928]
[1693742132571,0.4307891,1634.0,1633.9,12.35277928]
[1693742138482,0.4307891,1634.0,1633.9,12.35702736]
[1693742145717,0.4307891,1634.0,1633.9,6.21061868]
[1693742145922,0.4307891,1634.0,1633.9,12.3590377]
[1693742156032,0.4307891,1634.0,1633.9,12.37475233]
[1693742164870,0.00306274,1634.0,1633.9,12.37475233]
[1693742165106,0.00306274,1634.0,1633.9,13.75482587]
[1693742165358,1.60421508,1634.3,1633.9,14.36657223]
[1693742165539,0.64168603,1634.4,1634.0,9.85773405]